{"text_format":"3","workbook":"xlsx","n_sheets":4,"sheets":["Programación Por Profesional","Programacion Total Establecimie","Rendimientos","Hrs a ambulatorio"],"read":"whole","date_system":"1900"}

{"sheet":"Programación Por Profesional","index":0,"n_rows":33,"n_cols":47,"rows_kept":33,"merged":[[1,5,1,34],[2,0,2,2],[2,5,3,5],[2,6,3,6],[2,7,2,10],[2,11,2,14],[2,15,2,18],[2,19,2,22],[2,23,2,26],[2,27,2,30],[2,31,2,32],[2,33,2,36],[3,0,3,1],[17,3,17,7],[17,8,17,13],[17,15,17,43],[18,0,18,2],[18,6,18,7],[18,8,18,9],[18,10,18,11],[18,12,18,13],[18,15,19,16],[18,17,19,17],[18,18,18,19],[18,20,18,21],[18,22,18,23],[18,24,18,25],[18,26,18,27],[18,28,18,29],[18,30,18,31],[18,32,18,33],[18,34,18,35],[18,36,18,37],[18,38,18,39],[18,40,18,41],[18,42,18,43],[19,0,19,1],[30,0,30,2],[30,15,30,17]]}
[]
[{"$nulls":5},"PROGRAMACIÓN SEMANAL"]
["Distribución Semanal de Actividades Clinicas y Administrativas por Profesional",{"$nulls":4},"Hrs Semanales contratadas","Hrs          Semanales Programadas","CONSULTA AMBULATORIA",{"$nulls":3},"PROCEDIMIENTOS",{"$nulls":3},"CIRUGIAS",{"$nulls":3},"VISITA A SALA ",{"$nulls":3},"IC",{"$nulls":3},"CONSULTAS ABREVIADAS",{"$nulls":3},"Actividades  Administrativas y Reuniones",null,"OTRO"]
["Nombre del Profesional",null,"Especialidad o Programa ","Tipo de contrato (Contrata / Honorario)","LEY (18834 o 19664) ",null,null,"% hrs.","Hrs /semana","Rendimiento","Nº Pacientes Semanales      ","% hrs.","Hrs /semana","Rendimiento","Nº Pacientes Semanales      ","% hrs.","Hrs /semana","Rendimiento","Nº Pacientes Semanales      ","% hrs.","Hrs /semana","Rendimiento","Nº Pacientes Semanales      ","% hrs.","Hrs /semana","Rendimiento","Nº Pacientes Semanales      ","% hrs.","Hrs /semana","Rendimiento","Nº Pacientes Semanales      ","% hrs.","Hrs /semana","% hrs.","Hrs /semana","Rendimiento","Nº Pacientes Semanales"]
[{"$nulls":7},{"$f":"+I5/F5","v":{"$error":"#DIV/0!"}},{"v":10,"d":"10.0"},{"v":4,"d":"4.0"},{"$f":"+I5*J5","v":40},{"$f":"M5/F5","v":{"$error":"#DIV/0!"}},{"v":10,"d":"10.0"},{"$f":"VLOOKUP(M5,Rendimientos!E:F,2,FALSE)","v":{"$error":"#N/A"}},{"$f":"M5*N5","v":{"$error":"#N/A"}},{"$f":"+Q5/F5","v":{"$error":"#DIV/0!"}},null,{"$f":"VLOOKUP(Q5,Rendimientos!I:J,2,FALSE)","v":{"$error":"#N/A"}},{"$f":"+Q5*R5","v":{"$error":"#N/A"}},{"$f":"+U5/F5","v":{"$error":"#DIV/0!"}},null,{"$f":"VLOOKUP(U5,Rendimientos!M:N,2,FALSE)","v":{"$error":"#N/A"}},{"$f":"+U5*V5","v":{"$error":"#N/A"}},{"$f":"+Y5/F5","v":{"$error":"#DIV/0!"}},null,{"$f":"VLOOKUP(Y5,Rendimientos!Q:R,2,FALSE)","v":{"$error":"#N/A"}},{"$f":"+Y5*Z5","v":{"$error":"#N/A"}},{"$f":"+AC5/F5","v":{"$error":"#DIV/0!"}},null,{"$f":"VLOOKUP(AC5,Rendimientos!U:V,2,FALSE)","v":{"$error":"#N/A"}},{"$f":"+AC5*AD5","v":{"$error":"#N/A"}},{"$f":"+AG5/F5","v":{"$error":"#DIV/0!"}},null,{"$f":"+AI5/F5","v":{"$error":"#DIV/0!"}},null,{"$f":"VLOOKUP(AI5,Rendimientos!AA:AB,2,FALSE)","v":{"$error":"#N/A"}},{"$f":"+AI5*AJ5","v":{"$error":"#N/A"}}]
[{"$nulls":7},{"$f":"+I6/F6","v":{"$error":"#DIV/0!"}},null,{"$f":"VLOOKUP(C6,Rendimientos!A:B,2,FALSE)","v":{"$error":"#N/A"}},{"$f":"+I6*J6","v":{"$error":"#N/A"}},{"$f":"M6/F6","v":{"$error":"#DIV/0!"}},null,{"$f":"VLOOKUP(M6,Rendimientos!E:F,2,FALSE)","v":{"$error":"#N/A"}},{"$f":"M6*N6","v":{"$error":"#N/A"}},{"$f":"+Q6/F6","v":{"$error":"#DIV/0!"}},null,{"$f":"VLOOKUP(Q6,Rendimientos!I:J,2,FALSE)","v":{"$error":"#N/A"}},{"$f":"+Q6*R6","v":{"$error":"#N/A"}},{"$f":"+U6/F6","v":{"$error":"#DIV/0!"}},null,{"$f":"VLOOKUP(U6,Rendimientos!M:N,2,FALSE)","v":{"$error":"#N/A"}},{"$f":"+U6*V6","v":{"$error":"#N/A"}},{"$f":"+Y6/F6","v":{"$error":"#DIV/0!"}},null,{"$f":"VLOOKUP(Y6,Rendimientos!Q:R,2,FALSE)","v":{"$error":"#N/A"}},{"$f":"+Y6*Z6","v":{"$error":"#N/A"}},{"$f":"+AC6/F6","v":{"$error":"#DIV/0!"}},null,{"$f":"VLOOKUP(AC6,Rendimientos!U:V,2,FALSE)","v":{"$error":"#N/A"}},{"$f":"+AC6*AD6","v":{"$error":"#N/A"}},{"$f":"+AG6/F6","v":{"$error":"#DIV/0!"}},null,{"$f":"+AI6/F6","v":{"$error":"#DIV/0!"}},null,{"$f":"VLOOKUP(AI6,Rendimientos!AA:AB,2,FALSE)","v":{"$error":"#N/A"}},{"$f":"+AI6*AJ6","v":{"$error":"#N/A"}}]
[{"$nulls":7},{"$error":"#DIV/0!"},null,{"$f":"VLOOKUP(C7,Rendimientos!A:B,2,FALSE)","v":{"$error":"#N/A"}},{"$error":"#N/A"},{"$error":"#DIV/0!"},null,{"$f":"VLOOKUP(M7,Rendimientos!E:F,2,FALSE)","v":{"$error":"#N/A"}},{"$error":"#N/A"},{"$error":"#DIV/0!"},null,{"$f":"VLOOKUP(Q7,Rendimientos!I:J,2,FALSE)","v":{"$error":"#N/A"}},{"$error":"#N/A"},{"$error":"#DIV/0!"},null,{"$f":"VLOOKUP(U7,Rendimientos!M:N,2,FALSE)","v":{"$error":"#N/A"}},{"$error":"#N/A"},{"$error":"#DIV/0!"},null,{"$f":"VLOOKUP(Y7,Rendimientos!Q:R,2,FALSE)","v":{"$error":"#N/A"}},{"$error":"#N/A"},{"$error":"#DIV/0!"},null,{"$f":"VLOOKUP(AC7,Rendimientos!U:V,2,FALSE)","v":{"$error":"#N/A"}},{"$error":"#N/A"},{"$error":"#DIV/0!"},null,{"$error":"#DIV/0!"},null,{"$f":"VLOOKUP(AI7,Rendimientos!AA:AB,2,FALSE)","v":{"$error":"#N/A"}},{"$error":"#N/A"}]
[{"$nulls":7},{"$error":"#DIV/0!"},null,{"$f":"VLOOKUP(C8,Rendimientos!A:B,2,FALSE)","v":{"$error":"#N/A"}},{"$error":"#N/A"},{"$error":"#DIV/0!"},null,{"$f":"VLOOKUP(M8,Rendimientos!E:F,2,FALSE)","v":{"$error":"#N/A"}},{"$error":"#N/A"},{"$error":"#DIV/0!"},null,{"$f":"VLOOKUP(Q8,Rendimientos!I:J,2,FALSE)","v":{"$error":"#N/A"}},{"$error":"#N/A"},{"$error":"#DIV/0!"},null,{"$f":"VLOOKUP(U8,Rendimientos!M:N,2,FALSE)","v":{"$error":"#N/A"}},{"$error":"#N/A"},{"$error":"#DIV/0!"},null,{"$f":"VLOOKUP(Y8,Rendimientos!Q:R,2,FALSE)","v":{"$error":"#N/A"}},{"$error":"#N/A"},{"$error":"#DIV/0!"},null,{"$f":"VLOOKUP(AC8,Rendimientos!U:V,2,FALSE)","v":{"$error":"#N/A"}},{"$error":"#N/A"},{"$error":"#DIV/0!"},null,{"$error":"#DIV/0!"},null,{"$f":"VLOOKUP(AI8,Rendimientos!AA:AB,2,FALSE)","v":{"$error":"#N/A"}},{"$error":"#N/A"}]
[{"$nulls":7},{"$error":"#DIV/0!"},null,{"$f":"VLOOKUP(C9,Rendimientos!A:B,2,FALSE)","v":{"$error":"#N/A"}},{"$error":"#N/A"},{"$error":"#DIV/0!"},null,{"$f":"VLOOKUP(M9,Rendimientos!E:F,2,FALSE)","v":{"$error":"#N/A"}},{"$error":"#N/A"},{"$error":"#DIV/0!"},null,{"$f":"VLOOKUP(Q9,Rendimientos!I:J,2,FALSE)","v":{"$error":"#N/A"}},{"$error":"#N/A"},{"$error":"#DIV/0!"},null,{"$f":"VLOOKUP(U9,Rendimientos!M:N,2,FALSE)","v":{"$error":"#N/A"}},{"$error":"#N/A"},{"$error":"#DIV/0!"},null,{"$f":"VLOOKUP(Y9,Rendimientos!Q:R,2,FALSE)","v":{"$error":"#N/A"}},{"$error":"#N/A"},{"$error":"#DIV/0!"},null,{"$f":"VLOOKUP(AC9,Rendimientos!U:V,2,FALSE)","v":{"$error":"#N/A"}},{"$error":"#N/A"},{"$error":"#DIV/0!"},null,{"$error":"#DIV/0!"},null,{"$f":"VLOOKUP(AI9,Rendimientos!AA:AB,2,FALSE)","v":{"$error":"#N/A"}},{"$error":"#N/A"}]
[{"$nulls":7},{"$error":"#DIV/0!"},null,{"$f":"VLOOKUP(C10,Rendimientos!A:B,2,FALSE)","v":{"$error":"#N/A"}},{"$error":"#N/A"},{"$error":"#DIV/0!"},null,{"$f":"VLOOKUP(M10,Rendimientos!E:F,2,FALSE)","v":{"$error":"#N/A"}},{"$error":"#N/A"},{"$error":"#DIV/0!"},null,{"$f":"VLOOKUP(Q10,Rendimientos!I:J,2,FALSE)","v":{"$error":"#N/A"}},{"$error":"#N/A"},{"$error":"#DIV/0!"},null,{"$f":"VLOOKUP(U10,Rendimientos!M:N,2,FALSE)","v":{"$error":"#N/A"}},{"$error":"#N/A"},{"$error":"#DIV/0!"},null,{"$f":"VLOOKUP(Y10,Rendimientos!Q:R,2,FALSE)","v":{"$error":"#N/A"}},{"$error":"#N/A"},{"$error":"#DIV/0!"},null,{"$f":"VLOOKUP(AC10,Rendimientos!U:V,2,FALSE)","v":{"$error":"#N/A"}},{"$error":"#N/A"},{"$error":"#DIV/0!"},null,{"$error":"#DIV/0!"},null,{"$f":"VLOOKUP(AI10,Rendimientos!AA:AB,2,FALSE)","v":{"$error":"#N/A"}},{"$error":"#N/A"}]
[{"$nulls":7},{"$error":"#DIV/0!"},null,{"$f":"VLOOKUP(C11,Rendimientos!A:B,2,FALSE)","v":{"$error":"#N/A"}},{"$error":"#N/A"},{"$error":"#DIV/0!"},null,{"$f":"VLOOKUP(M11,Rendimientos!E:F,2,FALSE)","v":{"$error":"#N/A"}},{"$error":"#N/A"},{"$error":"#DIV/0!"},null,{"$f":"VLOOKUP(Q11,Rendimientos!I:J,2,FALSE)","v":{"$error":"#N/A"}},{"$error":"#N/A"},{"$error":"#DIV/0!"},null,{"$f":"VLOOKUP(U11,Rendimientos!M:N,2,FALSE)","v":{"$error":"#N/A"}},{"$error":"#N/A"},{"$error":"#DIV/0!"},null,{"$f":"VLOOKUP(Y11,Rendimientos!Q:R,2,FALSE)","v":{"$error":"#N/A"}},{"$error":"#N/A"},{"$error":"#DIV/0!"},null,{"$f":"VLOOKUP(AC11,Rendimientos!U:V,2,FALSE)","v":{"$error":"#N/A"}},{"$error":"#N/A"},{"$error":"#DIV/0!"},null,{"$error":"#DIV/0!"},null,{"$f":"VLOOKUP(AI11,Rendimientos!AA:AB,2,FALSE)","v":{"$error":"#N/A"}},{"$error":"#N/A"}]
[{"$nulls":7},{"$error":"#DIV/0!"},null,{"$f":"VLOOKUP(C12,Rendimientos!A:B,2,FALSE)","v":{"$error":"#N/A"}},{"$error":"#N/A"},{"$error":"#DIV/0!"},null,{"$f":"VLOOKUP(M12,Rendimientos!E:F,2,FALSE)","v":{"$error":"#N/A"}},{"$error":"#N/A"},{"$error":"#DIV/0!"},null,{"$f":"VLOOKUP(Q12,Rendimientos!I:J,2,FALSE)","v":{"$error":"#N/A"}},{"$error":"#N/A"},{"$error":"#DIV/0!"},null,{"$f":"VLOOKUP(U12,Rendimientos!M:N,2,FALSE)","v":{"$error":"#N/A"}},{"$error":"#N/A"},{"$error":"#DIV/0!"},null,{"$f":"VLOOKUP(Y12,Rendimientos!Q:R,2,FALSE)","v":{"$error":"#N/A"}},{"$error":"#N/A"},{"$error":"#DIV/0!"},null,{"$f":"VLOOKUP(AC12,Rendimientos!U:V,2,FALSE)","v":{"$error":"#N/A"}},{"$error":"#N/A"},{"$error":"#DIV/0!"},null,{"$error":"#DIV/0!"},null,{"$f":"VLOOKUP(AI12,Rendimientos!AA:AB,2,FALSE)","v":{"$error":"#N/A"}},{"$error":"#N/A"}]
[{"$nulls":7},{"$error":"#DIV/0!"},null,{"$f":"VLOOKUP(C13,Rendimientos!A:B,2,FALSE)","v":{"$error":"#N/A"}},{"$error":"#N/A"},{"$error":"#DIV/0!"},null,{"$f":"VLOOKUP(M13,Rendimientos!E:F,2,FALSE)","v":{"$error":"#N/A"}},{"$error":"#N/A"},{"$error":"#DIV/0!"},null,{"$f":"VLOOKUP(Q13,Rendimientos!I:J,2,FALSE)","v":{"$error":"#N/A"}},{"$error":"#N/A"},{"$error":"#DIV/0!"},null,{"$f":"VLOOKUP(U13,Rendimientos!M:N,2,FALSE)","v":{"$error":"#N/A"}},{"$error":"#N/A"},{"$error":"#DIV/0!"},null,{"$f":"VLOOKUP(Y13,Rendimientos!Q:R,2,FALSE)","v":{"$error":"#N/A"}},{"$error":"#N/A"},{"$error":"#DIV/0!"},null,{"$f":"VLOOKUP(AC13,Rendimientos!U:V,2,FALSE)","v":{"$error":"#N/A"}},{"$error":"#N/A"},{"$error":"#DIV/0!"},null,{"$error":"#DIV/0!"},null,{"$f":"VLOOKUP(AI13,Rendimientos!AA:AB,2,FALSE)","v":{"$error":"#N/A"}},{"$error":"#N/A"}]
[{"$nulls":7},{"$error":"#DIV/0!"},null,{"$f":"VLOOKUP(C14,Rendimientos!A:B,2,FALSE)","v":{"$error":"#N/A"}},{"$error":"#N/A"},{"$error":"#DIV/0!"},null,{"$f":"VLOOKUP(M14,Rendimientos!E:F,2,FALSE)","v":{"$error":"#N/A"}},{"$error":"#N/A"},{"$error":"#DIV/0!"},null,{"$f":"VLOOKUP(Q14,Rendimientos!I:J,2,FALSE)","v":{"$error":"#N/A"}},{"$error":"#N/A"},{"$error":"#DIV/0!"},null,{"$f":"VLOOKUP(U14,Rendimientos!M:N,2,FALSE)","v":{"$error":"#N/A"}},{"$error":"#N/A"},{"$error":"#DIV/0!"},null,{"$f":"VLOOKUP(Y14,Rendimientos!Q:R,2,FALSE)","v":{"$error":"#N/A"}},{"$error":"#N/A"},{"$error":"#DIV/0!"},null,{"$f":"VLOOKUP(AC14,Rendimientos!U:V,2,FALSE)","v":{"$error":"#N/A"}},{"$error":"#N/A"},{"$error":"#DIV/0!"},null,{"$error":"#DIV/0!"},null,{"$f":"VLOOKUP(AI14,Rendimientos!AA:AB,2,FALSE)","v":{"$error":"#N/A"}},{"$error":"#N/A"}]
[{"$nulls":7},{"$error":"#DIV/0!"},null,{"$f":"VLOOKUP(C15,Rendimientos!A:B,2,FALSE)","v":{"$error":"#N/A"}},{"$error":"#N/A"},{"$error":"#DIV/0!"},null,{"$f":"VLOOKUP(M15,Rendimientos!E:F,2,FALSE)","v":{"$error":"#N/A"}},{"$error":"#N/A"},{"$f":"+Q15/F15","v":{"$error":"#DIV/0!"}},null,{"$f":"VLOOKUP(Q15,Rendimientos!I:J,2,FALSE)","v":{"$error":"#N/A"}},{"$error":"#N/A"},{"$error":"#DIV/0!"},null,{"$f":"VLOOKUP(U15,Rendimientos!M:N,2,FALSE)","v":{"$error":"#N/A"}},{"$error":"#N/A"},{"$error":"#DIV/0!"},null,{"$f":"VLOOKUP(Y15,Rendimientos!Q:R,2,FALSE)","v":{"$error":"#N/A"}},{"$error":"#N/A"},{"$error":"#DIV/0!"},null,{"$f":"VLOOKUP(AC15,Rendimientos!U:V,2,FALSE)","v":{"$error":"#N/A"}},{"$error":"#N/A"},{"$error":"#DIV/0!"},null,{"$error":"#DIV/0!"},null,{"$f":"VLOOKUP(AI15,Rendimientos!AA:AB,2,FALSE)","v":{"$error":"#N/A"}},{"$error":"#N/A"}]
[]
[]
[{"$nulls":3},"Descuento de Feriados Legales, Permisos Administrativos y Capcacitación",{"$nulls":4},"PRODUCCIÓN ANUAL",{"$nulls":6},"CONSULTAS REALIZDAS/ MES "]
["Programación Anual de actividades por Profesional ",null,null,"Vacaciones","Dias de permisos Administrativo","Dias de Congreso o capacitación","Total días no trabajados",null,"Nº consultas            ",null,"Procedimientos  ",null,"Visitas a sala          ",null,null,"Nombre del Profesional ",null,"Especialidad o Programa","Enero",null,"Febrero",null,"Marzo",null,"Abril",null,"Mayo",null,"Junio",null,"Julio",null,"Agosto",null,"Septiembre",null,"Octubre",null,"Noviembre",null,"Diciembre",null,"Total año 2015"]
["Nombre del Profesional",null,"Especialidad o Programa","Dias Anuales","Dias Anuales","Dias Anuales","En Dias Anuales","En Semanas Anuales","Nº Pacientes Anuales        (En 50 sem)","Nº Pacientes Anuales  descontando dias FL, Cap y PA","Nº Procedimientos Anuales          (En 50 sem)","Nº Procedimientos Anuales descontando dias FL, Cap y PA","Nº Visitas Anuales            (? x Hr)","Nº Visitas Anuales descontando dias FL, Cap y PA",{"$nulls":4},"Nº atendido","Nº NSP","Nº atendido","Nº NSP","Nº atendido","Nº NSP","Nº atendido","Nº NSP","Nº atendido","Nº NSP","Nº atendido","Nº NSP","Nº atendido","Nº NSP","Nº atendido","Nº NSP","Nº atendido","Nº NSP","Nº atendido","Nº NSP","Nº atendido","Nº NSP","Nº atendido","Nº NSP","Nº atendido","Nº NSP",null,"% de Cumplimiento a Mayo"]
[{"$nulls":8},{"$f":"K5*50","v":{"v":2000,"d":"2,000"}},{"$f":"(50-K21)*K5","v":{"v":2000,"d":"2,000"}},{"$nulls":5},{"$f":"+A21","v":0},{"$f":"+B21","v":0},{"$f":"+C21","v":0},{"$nulls":24},{"$f":"+S21+U21+W21+Y21+AA21+AC21+AE21+AG21+AI21+AK21+AM21+AO21","v":0},{"$f":"+T21+V21+X21+Z21+AB21+AD21+AF21+AH21+AJ21+AL21+AN21+AP21","v":0},null,{"$f":"(AQ21+AR21)/J21","v":{"v":0,"d":"0%"}}]
[{"$nulls":8},{"$f":"K6*50","v":{"$error":"#N/A"}},{"$f":"(50-K22)*K6","v":{"$error":"#N/A"}},{"$nulls":5},{"$f":"+A22","v":0},{"$f":"+B22","v":0},{"$f":"+C22","v":0},{"$nulls":24},{"$f":"+S22+U22+W22+Y22+AA22+AC22+AE22+AG22+AI22+AK22+AM22+AO22","v":0},{"$f":"+T22+V22+X22+Z22+AB22+AD22+AF22+AH22+AJ22+AL22+AN22+AP22","v":0},null,{"$error":"#N/A"}]
[{"$nulls":8},{"$f":"K7*50","v":{"$error":"#N/A"}},{"$error":"#N/A"},{"$nulls":5},0,0,0,{"$nulls":24},0,0,null,{"$error":"#N/A"}]
[{"$nulls":8},{"$f":"K8*50","v":{"$error":"#N/A"}},{"$f":"(50-H24)*K8","v":{"$error":"#N/A"}},{"$nulls":5},0,0,0,{"$nulls":24},0,0,null,{"$error":"#N/A"}]
[{"$nulls":8},{"$f":"K9*50","v":{"$error":"#N/A"}},{"$f":"(50-H25)*K9","v":{"$error":"#N/A"}},{"$nulls":5},0,0,0,{"$nulls":24},0,0,null,{"$error":"#N/A"}]
[{"$nulls":8},{"$f":"K10*50","v":{"$error":"#N/A"}},{"$f":"(50-H26)*K10","v":{"$error":"#N/A"}},{"$nulls":5},0,0,0,{"$nulls":24},0,0,null,{"$error":"#N/A"}]
[{"$nulls":8},{"$f":"K11*50","v":{"$error":"#N/A"}},{"$f":"(50-H27)*K11","v":{"$error":"#N/A"}},{"$nulls":5},0,0,0,{"$nulls":24},{"$f":"+S27+U27+W27+Y27+AA27+AC27+AE27+AG27+AI27+AK27+AM27+AO27","v":0},{"$f":"+T27+V27+X27+Z27+AB27+AD27+AF27+AH27+AJ27+AL27+AN27+AP27","v":0},null,{"$error":"#N/A"}]
[{"$nulls":8},{"$f":"K12*50","v":{"$error":"#N/A"}},{"$f":"(50-H28)*K12","v":{"$error":"#N/A"}},{"$nulls":5},0,0,0,{"$nulls":24},0,0,null,{"$error":"#N/A"}]
[{"$nulls":8},{"$f":"K13*50","v":{"$error":"#N/A"}},{"$f":"(50-H29)*K13","v":{"$error":"#N/A"}},{"$nulls":5},0,0,0,{"$nulls":24},0,0,null,{"$error":"#N/A"}]
[{"$nulls":8},{"$f":"K15*50","v":{"$error":"#N/A"}},{"$f":"(50-H30)*K15","v":{"$error":"#N/A"}},{"$nulls":5},0,0,0,{"$nulls":24},0,0,null,{"$error":"#N/A"}]
["TOTAL",{"$nulls":7},{"$f":"I21+I22+I25+I24+I26+I30","v":{"$error":"#N/A"}},{"$f":"J21+J22+J25+J24+J26+J30","v":{"$error":"#N/A"}},{"$nulls":5},"TOTAL",{"$nulls":26},{"$f":"SUM(AQ21:AQ30)","v":0},{"$f":"SUM(AR21:AR30)","v":0},null,{"$error":"#N/A"}]
[]
[{"$nulls":46},"META 95%"]

{"sheet":"Programacion Total Establecimie","index":1,"n_rows":62,"n_cols":5,"rows_kept":62,"merged":[[0,0,1,0],[0,1,1,1],[0,2,0,3],[0,4,1,4]]}
["Especialidades ","Programado Anual de Consultas 2015","Total Producción de Consultas",null,"% Cumplimiento"]
[null,null,"Relizado","NSP"]
["Broncopulmonar",{"$f":"SUMIF('Programación Por Profesional'!$C$21:$J$30,'Programacion Total Establecimie'!A3,'Programación Por Profesional'!$J$21:$J$30)","v":0},{"$f":"SUMIF('Programación Por Profesional'!$R$21:$AR$30,'Programacion Total Establecimie'!A3,'Programación Por Profesional'!$AQ$21:$AQ$30)","v":0},{"$f":"SUMIF('Programación Por Profesional'!$R$21:$AR$30,'Programacion Total Establecimie'!A3,'Programación Por Profesional'!$AR$21:$AR$30)","v":0},{"$f":"C3/B3","v":{"$error":"#DIV/0!"}}]
["Cardiología",{"$f":"SUMIF('Programación Por Profesional'!$C$21:$J$30,'Programacion Total Establecimie'!A4,'Programación Por Profesional'!$J$21:$J$30)","v":0},{"$f":"SUMIF('Programación Por Profesional'!$R$21:$AR$30,'Programacion Total Establecimie'!A4,'Programación Por Profesional'!$AQ$21:$AQ$30)","v":0},{"$f":"SUMIF('Programación Por Profesional'!$R$21:$AR$30,'Programacion Total Establecimie'!A4,'Programación Por Profesional'!$AR$21:$AR$30)","v":0},{"$f":"C4/B4","v":{"$error":"#DIV/0!"}}]
["Cuidados Paliativos",{"$f":"SUMIF('Programación Por Profesional'!$C$21:$J$30,'Programacion Total Establecimie'!A5,'Programación Por Profesional'!$J$21:$J$30)","v":0},{"$f":"SUMIF('Programación Por Profesional'!$R$21:$AR$30,'Programacion Total Establecimie'!A5,'Programación Por Profesional'!$AQ$21:$AQ$30)","v":0},{"$f":"SUMIF('Programación Por Profesional'!$R$21:$AR$30,'Programacion Total Establecimie'!A5,'Programación Por Profesional'!$AR$21:$AR$30)","v":0},{"$error":"#DIV/0!"}]
["Dermatología",{"$f":"SUMIF('Programación Por Profesional'!$C$21:$J$30,'Programacion Total Establecimie'!A6,'Programación Por Profesional'!$J$21:$J$30)","v":0},{"$f":"SUMIF('Programación Por Profesional'!$R$21:$AR$30,'Programacion Total Establecimie'!A6,'Programación Por Profesional'!$AQ$21:$AQ$30)","v":0},{"$f":"SUMIF('Programación Por Profesional'!$R$21:$AR$30,'Programacion Total Establecimie'!A6,'Programación Por Profesional'!$AR$21:$AR$30)","v":0},{"$error":"#DIV/0!"}]
["Diabetes",{"$f":"SUMIF('Programación Por Profesional'!$C$21:$J$30,'Programacion Total Establecimie'!A7,'Programación Por Profesional'!$J$21:$J$30)","v":0},{"$f":"SUMIF('Programación Por Profesional'!$R$21:$AR$30,'Programacion Total Establecimie'!A7,'Programación Por Profesional'!$AQ$21:$AQ$30)","v":0},{"$f":"SUMIF('Programación Por Profesional'!$R$21:$AR$30,'Programacion Total Establecimie'!A7,'Programación Por Profesional'!$AR$21:$AR$30)","v":0},{"$error":"#DIV/0!"}]
["Endocrinología",{"$f":"SUMIF('Programación Por Profesional'!$C$21:$J$30,'Programacion Total Establecimie'!A8,'Programación Por Profesional'!$J$21:$J$30)","v":0},{"$f":"SUMIF('Programación Por Profesional'!$R$21:$AR$30,'Programacion Total Establecimie'!A8,'Programación Por Profesional'!$AQ$21:$AQ$30)","v":0},{"$f":"SUMIF('Programación Por Profesional'!$R$21:$AR$30,'Programacion Total Establecimie'!A8,'Programación Por Profesional'!$AR$21:$AR$30)","v":0},{"$error":"#DIV/0!"}]
["Gastroenterología",{"$f":"SUMIF('Programación Por Profesional'!$C$21:$J$30,'Programacion Total Establecimie'!A9,'Programación Por Profesional'!$J$21:$J$30)","v":0},{"$f":"SUMIF('Programación Por Profesional'!$R$21:$AR$30,'Programacion Total Establecimie'!A9,'Programación Por Profesional'!$AQ$21:$AQ$30)","v":0},{"$f":"SUMIF('Programación Por Profesional'!$R$21:$AR$30,'Programacion Total Establecimie'!A9,'Programación Por Profesional'!$AR$21:$AR$30)","v":0},{"$error":"#DIV/0!"}]
["Geriatría",{"$f":"SUMIF('Programación Por Profesional'!$C$21:$J$30,'Programacion Total Establecimie'!A10,'Programación Por Profesional'!$J$21:$J$30)","v":0},{"$f":"SUMIF('Programación Por Profesional'!$R$21:$AR$30,'Programacion Total Establecimie'!A10,'Programación Por Profesional'!$AQ$21:$AQ$30)","v":0},{"$f":"SUMIF('Programación Por Profesional'!$R$21:$AR$30,'Programacion Total Establecimie'!A10,'Programación Por Profesional'!$AR$21:$AR$30)","v":0},{"$error":"#DIV/0!"}]
["Infectología",{"$f":"SUMIF('Programación Por Profesional'!$C$21:$J$30,'Programacion Total Establecimie'!A11,'Programación Por Profesional'!$J$21:$J$30)","v":0},{"$f":"SUMIF('Programación Por Profesional'!$R$21:$AR$30,'Programacion Total Establecimie'!A11,'Programación Por Profesional'!$AQ$21:$AQ$30)","v":0},{"$f":"SUMIF('Programación Por Profesional'!$R$21:$AR$30,'Programacion Total Establecimie'!A11,'Programación Por Profesional'!$AR$21:$AR$30)","v":0},{"$error":"#DIV/0!"}]
["Fisiatría",{"$f":"SUMIF('Programación Por Profesional'!$C$21:$J$30,'Programacion Total Establecimie'!A12,'Programación Por Profesional'!$J$21:$J$30)","v":0},{"$f":"SUMIF('Programación Por Profesional'!$R$21:$AR$30,'Programacion Total Establecimie'!A12,'Programación Por Profesional'!$AQ$21:$AQ$30)","v":0},{"$f":"SUMIF('Programación Por Profesional'!$R$21:$AR$30,'Programacion Total Establecimie'!A12,'Programación Por Profesional'!$AR$21:$AR$30)","v":0},{"$error":"#DIV/0!"}]
["Medicina Interna",{"$f":"SUMIF('Programación Por Profesional'!$C$21:$J$30,'Programacion Total Establecimie'!A13,'Programación Por Profesional'!$J$21:$J$30)","v":0},{"$f":"SUMIF('Programación Por Profesional'!$R$21:$AR$30,'Programacion Total Establecimie'!A13,'Programación Por Profesional'!$AQ$21:$AQ$30)","v":0},{"$f":"SUMIF('Programación Por Profesional'!$R$21:$AR$30,'Programacion Total Establecimie'!A13,'Programación Por Profesional'!$AR$21:$AR$30)","v":0},{"$error":"#DIV/0!"}]
["Nefrología",{"$f":"SUMIF('Programación Por Profesional'!$C$21:$J$30,'Programacion Total Establecimie'!A14,'Programación Por Profesional'!$J$21:$J$30)","v":0},{"$f":"SUMIF('Programación Por Profesional'!$R$21:$AR$30,'Programacion Total Establecimie'!A14,'Programación Por Profesional'!$AQ$21:$AQ$30)","v":0},{"$f":"SUMIF('Programación Por Profesional'!$R$21:$AR$30,'Programacion Total Establecimie'!A14,'Programación Por Profesional'!$AR$21:$AR$30)","v":0},{"$error":"#DIV/0!"}]
["Neurología",{"$f":"SUMIF('Programación Por Profesional'!$C$21:$J$30,'Programacion Total Establecimie'!A15,'Programación Por Profesional'!$J$21:$J$30)","v":0},{"$f":"SUMIF('Programación Por Profesional'!$R$21:$AR$30,'Programacion Total Establecimie'!A15,'Programación Por Profesional'!$AQ$21:$AQ$30)","v":0},{"$f":"SUMIF('Programación Por Profesional'!$R$21:$AR$30,'Programacion Total Establecimie'!A15,'Programación Por Profesional'!$AR$21:$AR$30)","v":0},{"$error":"#DIV/0!"}]
["Nutrición",{"$f":"SUMIF('Programación Por Profesional'!$C$21:$J$30,'Programacion Total Establecimie'!A16,'Programación Por Profesional'!$J$21:$J$30)","v":0},{"$f":"SUMIF('Programación Por Profesional'!$R$21:$AR$30,'Programacion Total Establecimie'!A16,'Programación Por Profesional'!$AQ$21:$AQ$30)","v":0},{"$f":"SUMIF('Programación Por Profesional'!$R$21:$AR$30,'Programacion Total Establecimie'!A16,'Programación Por Profesional'!$AR$21:$AR$30)","v":0},{"$error":"#DIV/0!"}]
["Oncohematología",{"$f":"SUMIF('Programación Por Profesional'!$C$21:$J$30,'Programacion Total Establecimie'!A17,'Programación Por Profesional'!$J$21:$J$30)","v":0},{"$f":"SUMIF('Programación Por Profesional'!$R$21:$AR$30,'Programacion Total Establecimie'!A17,'Programación Por Profesional'!$AQ$21:$AQ$30)","v":0},{"$f":"SUMIF('Programación Por Profesional'!$R$21:$AR$30,'Programacion Total Establecimie'!A17,'Programación Por Profesional'!$AR$21:$AR$30)","v":0},{"$error":"#DIV/0!"}]
["Psiquiatría",{"$f":"SUMIF('Programación Por Profesional'!$C$21:$J$30,'Programacion Total Establecimie'!A18,'Programación Por Profesional'!$J$21:$J$30)","v":0},{"$f":"SUMIF('Programación Por Profesional'!$R$21:$AR$30,'Programacion Total Establecimie'!A18,'Programación Por Profesional'!$AQ$21:$AQ$30)","v":0},{"$f":"SUMIF('Programación Por Profesional'!$R$21:$AR$30,'Programacion Total Establecimie'!A18,'Programación Por Profesional'!$AR$21:$AR$30)","v":0},{"$error":"#DIV/0!"}]
["Reumatología",{"$f":"SUMIF('Programación Por Profesional'!$C$21:$J$30,'Programacion Total Establecimie'!A19,'Programación Por Profesional'!$J$21:$J$30)","v":0},{"$f":"SUMIF('Programación Por Profesional'!$R$21:$AR$30,'Programacion Total Establecimie'!A19,'Programación Por Profesional'!$AQ$21:$AQ$30)","v":0},{"$f":"SUMIF('Programación Por Profesional'!$R$21:$AR$30,'Programacion Total Establecimie'!A19,'Programación Por Profesional'!$AR$21:$AR$30)","v":0},{"$error":"#DIV/0!"}]
["Cardiocirugía",{"$f":"SUMIF('Programación Por Profesional'!$C$21:$J$30,'Programacion Total Establecimie'!A20,'Programación Por Profesional'!$J$21:$J$30)","v":0},{"$f":"SUMIF('Programación Por Profesional'!$R$21:$AR$30,'Programacion Total Establecimie'!A20,'Programación Por Profesional'!$AQ$21:$AQ$30)","v":0},{"$f":"SUMIF('Programación Por Profesional'!$R$21:$AR$30,'Programacion Total Establecimie'!A20,'Programación Por Profesional'!$AR$21:$AR$30)","v":0},{"$error":"#DIV/0!"}]
["Cirugía Oncológica (Cab, cuello, mama)",{"$f":"SUMIF('Programación Por Profesional'!$C$21:$J$30,'Programacion Total Establecimie'!A21,'Programación Por Profesional'!$J$21:$J$30)","v":0},{"$f":"SUMIF('Programación Por Profesional'!$R$21:$AR$30,'Programacion Total Establecimie'!A21,'Programación Por Profesional'!$AQ$21:$AQ$30)","v":0},{"$f":"SUMIF('Programación Por Profesional'!$R$21:$AR$30,'Programacion Total Establecimie'!A21,'Programación Por Profesional'!$AR$21:$AR$30)","v":0},{"$error":"#DIV/0!"}]
["Cirugía Digestiva Alta",{"$f":"SUMIF('Programación Por Profesional'!$C$21:$J$30,'Programacion Total Establecimie'!A22,'Programación Por Profesional'!$J$21:$J$30)","v":0},{"$f":"SUMIF('Programación Por Profesional'!$R$21:$AR$30,'Programacion Total Establecimie'!A22,'Programación Por Profesional'!$AQ$21:$AQ$30)","v":0},{"$f":"SUMIF('Programación Por Profesional'!$R$21:$AR$30,'Programacion Total Establecimie'!A22,'Programación Por Profesional'!$AR$21:$AR$30)","v":0},{"$error":"#DIV/0!"}]
["Cirugía Digestiva Baja (Coloproctología)",{"$f":"SUMIF('Programación Por Profesional'!$C$21:$J$30,'Programacion Total Establecimie'!A23,'Programación Por Profesional'!$J$21:$J$30)","v":0},{"$f":"SUMIF('Programación Por Profesional'!$R$21:$AR$30,'Programacion Total Establecimie'!A23,'Programación Por Profesional'!$AQ$21:$AQ$30)","v":0},{"$f":"SUMIF('Programación Por Profesional'!$R$21:$AR$30,'Programacion Total Establecimie'!A23,'Programación Por Profesional'!$AR$21:$AR$30)","v":0},{"$error":"#DIV/0!"}]
["Cirugia General ",{"$f":"SUMIF('Programación Por Profesional'!$C$21:$J$30,'Programacion Total Establecimie'!A24,'Programación Por Profesional'!$J$21:$J$30)","v":0},{"$f":"SUMIF('Programación Por Profesional'!$R$21:$AR$30,'Programacion Total Establecimie'!A24,'Programación Por Profesional'!$AQ$21:$AQ$30)","v":0},{"$f":"SUMIF('Programación Por Profesional'!$R$21:$AR$30,'Programacion Total Establecimie'!A24,'Programación Por Profesional'!$AR$21:$AR$30)","v":0},{"$error":"#DIV/0!"}]
["Cirugía Plástica",{"$f":"SUMIF('Programación Por Profesional'!$C$21:$J$30,'Programacion Total Establecimie'!A25,'Programación Por Profesional'!$J$21:$J$30)","v":0},{"$f":"SUMIF('Programación Por Profesional'!$R$21:$AR$30,'Programacion Total Establecimie'!A25,'Programación Por Profesional'!$AQ$21:$AQ$30)","v":0},{"$f":"SUMIF('Programación Por Profesional'!$R$21:$AR$30,'Programacion Total Establecimie'!A25,'Programación Por Profesional'!$AR$21:$AR$30)","v":0},{"$error":"#DIV/0!"}]
["Cirugía Tórax",{"$f":"SUMIF('Programación Por Profesional'!$C$21:$J$30,'Programacion Total Establecimie'!A26,'Programación Por Profesional'!$J$21:$J$30)","v":0},{"$f":"SUMIF('Programación Por Profesional'!$R$21:$AR$30,'Programacion Total Establecimie'!A26,'Programación Por Profesional'!$AQ$21:$AQ$30)","v":0},{"$f":"SUMIF('Programación Por Profesional'!$R$21:$AR$30,'Programacion Total Establecimie'!A26,'Programación Por Profesional'!$AR$21:$AR$30)","v":0},{"$error":"#DIV/0!"}]
["Cirugía Vascular",{"$f":"SUMIF('Programación Por Profesional'!$C$21:$J$30,'Programacion Total Establecimie'!A27,'Programación Por Profesional'!$J$21:$J$30)","v":0},{"$f":"SUMIF('Programación Por Profesional'!$R$21:$AR$30,'Programacion Total Establecimie'!A27,'Programación Por Profesional'!$AQ$21:$AQ$30)","v":0},{"$f":"SUMIF('Programación Por Profesional'!$R$21:$AR$30,'Programacion Total Establecimie'!A27,'Programación Por Profesional'!$AR$21:$AR$30)","v":0},{"$error":"#DIV/0!"}]
["Ginecología",{"$f":"SUMIF('Programación Por Profesional'!$C$21:$J$30,'Programacion Total Establecimie'!A28,'Programación Por Profesional'!$J$21:$J$30)","v":0},{"$f":"SUMIF('Programación Por Profesional'!$R$21:$AR$30,'Programacion Total Establecimie'!A28,'Programación Por Profesional'!$AQ$21:$AQ$30)","v":0},{"$f":"SUMIF('Programación Por Profesional'!$R$21:$AR$30,'Programacion Total Establecimie'!A28,'Programación Por Profesional'!$AR$21:$AR$30)","v":0},{"$error":"#DIV/0!"}]
["Neurocirugía",{"$f":"SUMIF('Programación Por Profesional'!$C$21:$J$30,'Programacion Total Establecimie'!A29,'Programación Por Profesional'!$J$21:$J$30)","v":0},{"$f":"SUMIF('Programación Por Profesional'!$R$21:$AR$30,'Programacion Total Establecimie'!A29,'Programación Por Profesional'!$AQ$21:$AQ$30)","v":0},{"$f":"SUMIF('Programación Por Profesional'!$R$21:$AR$30,'Programacion Total Establecimie'!A29,'Programación Por Profesional'!$AR$21:$AR$30)","v":0},{"$error":"#DIV/0!"}]
["Obstetricia",{"$f":"SUMIF('Programación Por Profesional'!$C$21:$J$30,'Programacion Total Establecimie'!A30,'Programación Por Profesional'!$J$21:$J$30)","v":0},{"$f":"SUMIF('Programación Por Profesional'!$R$21:$AR$30,'Programacion Total Establecimie'!A30,'Programación Por Profesional'!$AQ$21:$AQ$30)","v":0},{"$f":"SUMIF('Programación Por Profesional'!$R$21:$AR$30,'Programacion Total Establecimie'!A30,'Programación Por Profesional'!$AR$21:$AR$30)","v":0},{"$error":"#DIV/0!"}]
["Oftalmología",{"$f":"SUMIF('Programación Por Profesional'!$C$21:$J$30,'Programacion Total Establecimie'!A31,'Programación Por Profesional'!$J$21:$J$30)","v":0},{"$f":"SUMIF('Programación Por Profesional'!$R$21:$AR$30,'Programacion Total Establecimie'!A31,'Programación Por Profesional'!$AQ$21:$AQ$30)","v":0},{"$f":"SUMIF('Programación Por Profesional'!$R$21:$AR$30,'Programacion Total Establecimie'!A31,'Programación Por Profesional'!$AR$21:$AR$30)","v":0},{"$error":"#DIV/0!"}]
["Otorrinolaringología",{"$f":"SUMIF('Programación Por Profesional'!$C$21:$J$30,'Programacion Total Establecimie'!A32,'Programación Por Profesional'!$J$21:$J$30)","v":0},{"$f":"SUMIF('Programación Por Profesional'!$R$21:$AR$30,'Programacion Total Establecimie'!A32,'Programación Por Profesional'!$AQ$21:$AQ$30)","v":0},{"$f":"SUMIF('Programación Por Profesional'!$R$21:$AR$30,'Programacion Total Establecimie'!A32,'Programación Por Profesional'!$AR$21:$AR$30)","v":0},{"$error":"#DIV/0!"}]
["Traumatología",{"$f":"SUMIF('Programación Por Profesional'!$C$21:$J$30,'Programacion Total Establecimie'!A33,'Programación Por Profesional'!$J$21:$J$30)","v":0},{"$f":"SUMIF('Programación Por Profesional'!$R$21:$AR$30,'Programacion Total Establecimie'!A33,'Programación Por Profesional'!$AQ$21:$AQ$30)","v":0},{"$f":"SUMIF('Programación Por Profesional'!$R$21:$AR$30,'Programacion Total Establecimie'!A33,'Programación Por Profesional'!$AR$21:$AR$30)","v":0},{"$error":"#DIV/0!"}]
["Urología",{"$f":"SUMIF('Programación Por Profesional'!$C$21:$J$30,'Programacion Total Establecimie'!A34,'Programación Por Profesional'!$J$21:$J$30)","v":0},{"$f":"SUMIF('Programación Por Profesional'!$R$21:$AR$30,'Programacion Total Establecimie'!A34,'Programación Por Profesional'!$AQ$21:$AQ$30)","v":0},{"$f":"SUMIF('Programación Por Profesional'!$R$21:$AR$30,'Programacion Total Establecimie'!A34,'Programación Por Profesional'!$AR$21:$AR$30)","v":0},{"$error":"#DIV/0!"}]
["Broncopulmonar Infantil",{"$f":"SUMIF('Programación Por Profesional'!$C$21:$J$30,'Programacion Total Establecimie'!A35,'Programación Por Profesional'!$J$21:$J$30)","v":0},{"$f":"SUMIF('Programación Por Profesional'!$R$21:$AR$30,'Programacion Total Establecimie'!A35,'Programación Por Profesional'!$AQ$21:$AQ$30)","v":0},{"$f":"SUMIF('Programación Por Profesional'!$R$21:$AR$30,'Programacion Total Establecimie'!A35,'Programación Por Profesional'!$AR$21:$AR$30)","v":0},{"$error":"#DIV/0!"}]
["Cardiologia Infantil",{"$f":"SUMIF('Programación Por Profesional'!$C$21:$J$30,'Programacion Total Establecimie'!A36,'Programación Por Profesional'!$J$21:$J$30)","v":0},{"$f":"SUMIF('Programación Por Profesional'!$R$21:$AR$30,'Programacion Total Establecimie'!A36,'Programación Por Profesional'!$AQ$21:$AQ$30)","v":0},{"$f":"SUMIF('Programación Por Profesional'!$R$21:$AR$30,'Programacion Total Establecimie'!A36,'Programación Por Profesional'!$AR$21:$AR$30)","v":0},{"$error":"#DIV/0!"}]
["Cuidados Paliativos Pediátricos",{"$f":"SUMIF('Programación Por Profesional'!$C$21:$J$30,'Programacion Total Establecimie'!A37,'Programación Por Profesional'!$J$21:$J$30)","v":0},{"$f":"SUMIF('Programación Por Profesional'!$R$21:$AR$30,'Programacion Total Establecimie'!A37,'Programación Por Profesional'!$AQ$21:$AQ$30)","v":0},{"$f":"SUMIF('Programación Por Profesional'!$R$21:$AR$30,'Programacion Total Establecimie'!A37,'Programación Por Profesional'!$AR$21:$AR$30)","v":0},{"$error":"#DIV/0!"}]
["Dermatología",{"$f":"SUMIF('Programación Por Profesional'!$C$21:$J$30,'Programacion Total Establecimie'!A38,'Programación Por Profesional'!$J$21:$J$30)","v":0},{"$f":"SUMIF('Programación Por Profesional'!$R$21:$AR$30,'Programacion Total Establecimie'!A38,'Programación Por Profesional'!$AQ$21:$AQ$30)","v":0},{"$f":"SUMIF('Programación Por Profesional'!$R$21:$AR$30,'Programacion Total Establecimie'!A38,'Programación Por Profesional'!$AR$21:$AR$30)","v":0},{"$error":"#DIV/0!"}]
["Diabetes Infantil",{"$f":"SUMIF('Programación Por Profesional'!$C$21:$J$30,'Programacion Total Establecimie'!A39,'Programación Por Profesional'!$J$21:$J$30)","v":0},{"$f":"SUMIF('Programación Por Profesional'!$R$21:$AR$30,'Programacion Total Establecimie'!A39,'Programación Por Profesional'!$AQ$21:$AQ$30)","v":0},{"$f":"SUMIF('Programación Por Profesional'!$R$21:$AR$30,'Programacion Total Establecimie'!A39,'Programación Por Profesional'!$AR$21:$AR$30)","v":0},{"$error":"#DIV/0!"}]
["Endocrinología Infantil",{"$f":"SUMIF('Programación Por Profesional'!$C$21:$J$30,'Programacion Total Establecimie'!A40,'Programación Por Profesional'!$J$21:$J$30)","v":0},{"$f":"SUMIF('Programación Por Profesional'!$R$21:$AR$30,'Programacion Total Establecimie'!A40,'Programación Por Profesional'!$AQ$21:$AQ$30)","v":0},{"$f":"SUMIF('Programación Por Profesional'!$R$21:$AR$30,'Programacion Total Establecimie'!A40,'Programación Por Profesional'!$AR$21:$AR$30)","v":0},{"$error":"#DIV/0!"}]
["Gastroenterología Infantil",{"$f":"SUMIF('Programación Por Profesional'!$C$21:$J$30,'Programacion Total Establecimie'!A41,'Programación Por Profesional'!$J$21:$J$30)","v":0},{"$f":"SUMIF('Programación Por Profesional'!$R$21:$AR$30,'Programacion Total Establecimie'!A41,'Programación Por Profesional'!$AQ$21:$AQ$30)","v":0},{"$f":"SUMIF('Programación Por Profesional'!$R$21:$AR$30,'Programacion Total Establecimie'!A41,'Programación Por Profesional'!$AR$21:$AR$30)","v":0},{"$error":"#DIV/0!"}]
["Ginecologia Infantil",{"$f":"SUMIF('Programación Por Profesional'!$C$21:$J$30,'Programacion Total Establecimie'!A42,'Programación Por Profesional'!$J$21:$J$30)","v":0},{"$f":"SUMIF('Programación Por Profesional'!$R$21:$AR$30,'Programacion Total Establecimie'!A42,'Programación Por Profesional'!$AQ$21:$AQ$30)","v":0},{"$f":"SUMIF('Programación Por Profesional'!$R$21:$AR$30,'Programacion Total Establecimie'!A42,'Programación Por Profesional'!$AR$21:$AR$30)","v":0},{"$error":"#DIV/0!"}]
["Infectología Infantil",{"$f":"SUMIF('Programación Por Profesional'!$C$21:$J$30,'Programacion Total Establecimie'!A43,'Programación Por Profesional'!$J$21:$J$30)","v":0},{"$f":"SUMIF('Programación Por Profesional'!$R$21:$AR$30,'Programacion Total Establecimie'!A43,'Programación Por Profesional'!$AQ$21:$AQ$30)","v":0},{"$f":"SUMIF('Programación Por Profesional'!$R$21:$AR$30,'Programacion Total Establecimie'!A43,'Programación Por Profesional'!$AR$21:$AR$30)","v":0},{"$error":"#DIV/0!"}]
["Fisiatría",{"$f":"SUMIF('Programación Por Profesional'!$C$21:$J$30,'Programacion Total Establecimie'!A44,'Programación Por Profesional'!$J$21:$J$30)","v":0},{"$f":"SUMIF('Programación Por Profesional'!$R$21:$AR$30,'Programacion Total Establecimie'!A44,'Programación Por Profesional'!$AQ$21:$AQ$30)","v":0},{"$f":"SUMIF('Programación Por Profesional'!$R$21:$AR$30,'Programacion Total Establecimie'!A44,'Programación Por Profesional'!$AR$21:$AR$30)","v":0},{"$error":"#DIV/0!"}]
["Pediatria",{"$f":"SUMIF('Programación Por Profesional'!$C$21:$J$30,'Programacion Total Establecimie'!A45,'Programación Por Profesional'!$J$21:$J$30)","v":0},{"$f":"SUMIF('Programación Por Profesional'!$R$21:$AR$30,'Programacion Total Establecimie'!A45,'Programación Por Profesional'!$AQ$21:$AQ$30)","v":0},{"$f":"SUMIF('Programación Por Profesional'!$R$21:$AR$30,'Programacion Total Establecimie'!A45,'Programación Por Profesional'!$AR$21:$AR$30)","v":0},{"$error":"#DIV/0!"}]
["Nefrología Infantil           ",{"$f":"SUMIF('Programación Por Profesional'!$C$21:$J$30,'Programacion Total Establecimie'!A46,'Programación Por Profesional'!$J$21:$J$30)","v":0},{"$f":"SUMIF('Programación Por Profesional'!$R$21:$AR$30,'Programacion Total Establecimie'!A46,'Programación Por Profesional'!$AQ$21:$AQ$30)","v":0},{"$f":"SUMIF('Programación Por Profesional'!$R$21:$AR$30,'Programacion Total Establecimie'!A46,'Programación Por Profesional'!$AR$21:$AR$30)","v":0},{"$error":"#DIV/0!"}]
["Neurologia Infantil         ",{"$f":"SUMIF('Programación Por Profesional'!$C$21:$J$30,'Programacion Total Establecimie'!A47,'Programación Por Profesional'!$J$21:$J$30)","v":0},{"$f":"SUMIF('Programación Por Profesional'!$R$21:$AR$30,'Programacion Total Establecimie'!A47,'Programación Por Profesional'!$AQ$21:$AQ$30)","v":0},{"$f":"SUMIF('Programación Por Profesional'!$R$21:$AR$30,'Programacion Total Establecimie'!A47,'Programación Por Profesional'!$AR$21:$AR$30)","v":0},{"$error":"#DIV/0!"}]
["Nutrición Infantil            ",{"$f":"SUMIF('Programación Por Profesional'!$C$21:$J$30,'Programacion Total Establecimie'!A48,'Programación Por Profesional'!$J$21:$J$30)","v":0},{"$f":"SUMIF('Programación Por Profesional'!$R$21:$AR$30,'Programacion Total Establecimie'!A48,'Programación Por Profesional'!$AQ$21:$AQ$30)","v":0},{"$f":"SUMIF('Programación Por Profesional'!$R$21:$AR$30,'Programacion Total Establecimie'!A48,'Programación Por Profesional'!$AR$21:$AR$30)","v":0},{"$error":"#DIV/0!"}]
["Oncohematología Infantil",{"$f":"SUMIF('Programación Por Profesional'!$C$21:$J$30,'Programacion Total Establecimie'!A49,'Programación Por Profesional'!$J$21:$J$30)","v":0},{"$f":"SUMIF('Programación Por Profesional'!$R$21:$AR$30,'Programacion Total Establecimie'!A49,'Programación Por Profesional'!$AQ$21:$AQ$30)","v":0},{"$f":"SUMIF('Programación Por Profesional'!$R$21:$AR$30,'Programacion Total Establecimie'!A49,'Programación Por Profesional'!$AR$21:$AR$30)","v":0},{"$error":"#DIV/0!"}]
["Psiquiatría infantil",{"$f":"SUMIF('Programación Por Profesional'!$C$21:$J$30,'Programacion Total Establecimie'!A50,'Programación Por Profesional'!$J$21:$J$30)","v":0},{"$f":"SUMIF('Programación Por Profesional'!$R$21:$AR$30,'Programacion Total Establecimie'!A50,'Programación Por Profesional'!$AQ$21:$AQ$30)","v":0},{"$f":"SUMIF('Programación Por Profesional'!$R$21:$AR$30,'Programacion Total Establecimie'!A50,'Programación Por Profesional'!$AR$21:$AR$30)","v":0},{"$error":"#DIV/0!"}]
["Reumatologia Infantil",{"$f":"SUMIF('Programación Por Profesional'!$C$21:$J$30,'Programacion Total Establecimie'!A51,'Programación Por Profesional'!$J$21:$J$30)","v":0},{"$f":"SUMIF('Programación Por Profesional'!$R$21:$AR$30,'Programacion Total Establecimie'!A51,'Programación Por Profesional'!$AQ$21:$AQ$30)","v":0},{"$f":"SUMIF('Programación Por Profesional'!$R$21:$AR$30,'Programacion Total Establecimie'!A51,'Programación Por Profesional'!$AR$21:$AR$30)","v":0},{"$error":"#DIV/0!"}]
["NINEAS",{"$f":"SUMIF('Programación Por Profesional'!$C$21:$J$30,'Programacion Total Establecimie'!A52,'Programación Por Profesional'!$J$21:$J$30)","v":0},{"$f":"SUMIF('Programación Por Profesional'!$R$21:$AR$30,'Programacion Total Establecimie'!A52,'Programación Por Profesional'!$AQ$21:$AQ$30)","v":0},{"$f":"SUMIF('Programación Por Profesional'!$R$21:$AR$30,'Programacion Total Establecimie'!A52,'Programación Por Profesional'!$AR$21:$AR$30)","v":0},{"$error":"#DIV/0!"}]
["Genética",{"$f":"SUMIF('Programación Por Profesional'!$C$21:$J$30,'Programacion Total Establecimie'!A53,'Programación Por Profesional'!$J$21:$J$30)","v":0},{"$f":"SUMIF('Programación Por Profesional'!$R$21:$AR$30,'Programacion Total Establecimie'!A53,'Programación Por Profesional'!$AQ$21:$AQ$30)","v":0},{"$f":"SUMIF('Programación Por Profesional'!$R$21:$AR$30,'Programacion Total Establecimie'!A53,'Programación Por Profesional'!$AR$21:$AR$30)","v":0},{"$error":"#DIV/0!"}]
["Adolescencia",{"$f":"SUMIF('Programación Por Profesional'!$C$21:$J$30,'Programacion Total Establecimie'!A54,'Programación Por Profesional'!$J$21:$J$30)","v":0},{"$f":"SUMIF('Programación Por Profesional'!$R$21:$AR$30,'Programacion Total Establecimie'!A54,'Programación Por Profesional'!$AQ$21:$AQ$30)","v":0},{"$f":"SUMIF('Programación Por Profesional'!$R$21:$AR$30,'Programacion Total Establecimie'!A54,'Programación Por Profesional'!$AR$21:$AR$30)","v":0},{"$error":"#DIV/0!"}]
["Seguimiento de prematuros",{"$f":"SUMIF('Programación Por Profesional'!$C$21:$J$30,'Programacion Total Establecimie'!A55,'Programación Por Profesional'!$J$21:$J$30)","v":0},{"$f":"SUMIF('Programación Por Profesional'!$R$21:$AR$30,'Programacion Total Establecimie'!A55,'Programación Por Profesional'!$AQ$21:$AQ$30)","v":0},{"$f":"SUMIF('Programación Por Profesional'!$R$21:$AR$30,'Programacion Total Establecimie'!A55,'Programación Por Profesional'!$AR$21:$AR$30)","v":0},{"$error":"#DIV/0!"}]
["Cardiocirugía Infantil",{"$f":"SUMIF('Programación Por Profesional'!$C$21:$J$30,'Programacion Total Establecimie'!A56,'Programación Por Profesional'!$J$21:$J$30)","v":0},{"$f":"SUMIF('Programación Por Profesional'!$R$21:$AR$30,'Programacion Total Establecimie'!A56,'Programación Por Profesional'!$AQ$21:$AQ$30)","v":0},{"$f":"SUMIF('Programación Por Profesional'!$R$21:$AR$30,'Programacion Total Establecimie'!A56,'Programación Por Profesional'!$AR$21:$AR$30)","v":0},{"$error":"#DIV/0!"}]
["Cirugia Infantil",{"$f":"SUMIF('Programación Por Profesional'!$C$21:$J$30,'Programacion Total Establecimie'!A57,'Programación Por Profesional'!$J$21:$J$30)","v":0},{"$f":"SUMIF('Programación Por Profesional'!$R$21:$AR$30,'Programacion Total Establecimie'!A57,'Programación Por Profesional'!$AQ$21:$AQ$30)","v":0},{"$f":"SUMIF('Programación Por Profesional'!$R$21:$AR$30,'Programacion Total Establecimie'!A57,'Programación Por Profesional'!$AR$21:$AR$30)","v":0},{"$error":"#DIV/0!"}]
["Cirugia Plastica Infantil",{"$f":"SUMIF('Programación Por Profesional'!$C$21:$J$30,'Programacion Total Establecimie'!A58,'Programación Por Profesional'!$J$21:$J$30)","v":0},{"$f":"SUMIF('Programación Por Profesional'!$R$21:$AR$30,'Programacion Total Establecimie'!A58,'Programación Por Profesional'!$AQ$21:$AQ$30)","v":0},{"$f":"SUMIF('Programación Por Profesional'!$R$21:$AR$30,'Programacion Total Establecimie'!A58,'Programación Por Profesional'!$AR$21:$AR$30)","v":0},{"$error":"#DIV/0!"}]
["Neurocirugía Infantil       ",{"$f":"SUMIF('Programación Por Profesional'!$C$21:$J$30,'Programacion Total Establecimie'!A59,'Programación Por Profesional'!$J$21:$J$30)","v":0},{"$f":"SUMIF('Programación Por Profesional'!$R$21:$AR$30,'Programacion Total Establecimie'!A59,'Programación Por Profesional'!$AQ$21:$AQ$30)","v":0},{"$f":"SUMIF('Programación Por Profesional'!$R$21:$AR$30,'Programacion Total Establecimie'!A59,'Programación Por Profesional'!$AR$21:$AR$30)","v":0},{"$error":"#DIV/0!"}]
["Traumatologia Infantil",{"$f":"SUMIF('Programación Por Profesional'!$C$21:$J$30,'Programacion Total Establecimie'!A60,'Programación Por Profesional'!$J$21:$J$30)","v":0},{"$f":"SUMIF('Programación Por Profesional'!$R$21:$AR$30,'Programacion Total Establecimie'!A60,'Programación Por Profesional'!$AQ$21:$AQ$30)","v":0},{"$f":"SUMIF('Programación Por Profesional'!$R$21:$AR$30,'Programacion Total Establecimie'!A60,'Programación Por Profesional'!$AR$21:$AR$30)","v":0},{"$error":"#DIV/0!"}]
["Urologia Infantil",{"$f":"SUMIF('Programación Por Profesional'!$C$21:$J$30,'Programacion Total Establecimie'!A61,'Programación Por Profesional'!$J$21:$J$30)","v":0},{"$f":"SUMIF('Programación Por Profesional'!$R$21:$AR$30,'Programacion Total Establecimie'!A61,'Programación Por Profesional'!$AQ$21:$AQ$30)","v":0},{"$f":"SUMIF('Programación Por Profesional'!$R$21:$AR$30,'Programacion Total Establecimie'!A61,'Programación Por Profesional'!$AR$21:$AR$30)","v":0},{"$error":"#DIV/0!"}]
["Total",{"$f":"SUM(B3:B61)","v":0},{"$f":"SUM(C3:C61)","v":0},0,{"$error":"#DIV/0!"}]

{"sheet":"Rendimientos","index":2,"n_rows":62,"n_cols":2,"rows_kept":62}
["Especialidad  ","Rendimiento por Hora Sugerido"]
["ADULTO "]
["Broncopulmonar",4]
["Cardiología",4]
["Cuidados Paliativos",3]
["Dermatología",5]
["Diabetes",4]
["Endocrinología",4]
["Gastroenterología",4]
["Geriatría",3]
["Infectología",3]
["Fisiatría",3]
["Medicina Interna",4]
["Nefrología",4]
["Neurología",3]
["Nutrición",4]
["Oncohematología",3]
["Psiquiatría",2]
["Reumatología",4]
["Cardiocirugía",3]
["Cirugía Oncológica (Cab, cuello, mama)",5]
["Cirugía Digestiva Alta",5]
["Cirugía Digestiva Baja (Coloproctología)",5]
["Cirugia General ",5]
["Cirugía Plástica",4]
["Cirugía Tórax",4]
["Cirugía Vascular",6]
["Ginecología",4]
["Neurocirugía",4]
["Obstetricia",4]
["Oftalmología",6]
["Otorrinolaringología",5]
["Traumatología",5]
["Urología",4]
["PEDIATRICO"]
["Broncopulmonar Infantil",3]
["Cardiologia Infantil",3]
["Cuidados Paliativos Pediátricos",2]
["Dermatología",5]
["Diabetes Infantil",3]
["Endocrinología Infantil",3]
["Gastroenterología Infantil",4]
["Ginecologia Infantil",3]
["Infectología Infantil",3]
["Fisiatría",3]
["Pediatria",4]
["Nefrología Infantil           ",4]
["Neurologia Infantil         ",3]
["Nutrición Infantil            ",3]
["Oncohematología Infantil",3]
["Psiquiatría infantil",2]
["Reumatologia Infantil",3]
["NINEAS (Niños con necesidades Especiales)",2]
["Genética",3]
["Adolescencia",3]
["Seguimiento de prematuros",2]
["Cardiocirugía Infantil",3]
["Cirugia Infantil",5]
["Cirugia Plastica Infantil",4]
["Neurocirugía Infantil       ",3]
["Traumatologia Infantil",5]
["Urologia Infantil",4]

{"sheet":"Hrs a ambulatorio","index":3,"n_rows":66,"n_cols":5,"rows_kept":66}
[]
["Especialidad médica  Adulto","min ","Promedio","max","Sugerencia estándar"]
["Broncopulmonar",7,{"v":39.995950413223134,"d":"40"},80,40]
["Cardiología",{"v":11.36,"d":"11"},{"v":48.71027831143216,"d":"49"},95,50]
["Cuidados Paliativos",1,{"v":46.35465058750773,"d":"46"},100,80]
["Dermatología",1,{"v":55.133738404452686,"d":"55"},{"v":160.59,"d":"161"},90]
["Diabetes",1,{"v":52.73051948051948,"d":"53"},{"v":97.7272727272727,"d":"98"},60]
["Endocrinología",{"v":20.2020202020202,"d":"20"},{"v":50.128876262626264,"d":"50"},100,60]
["Gastroenterología",4,{"v":41.881529581529584,"d":"42"},80,50]
["Geriatría",10,{"v":41.04,"d":"41"},104,50]
["Infectología",{"v":11.3,"d":"11"},{"v":33.69477272727273,"d":"34"},{"v":83.5,"d":"84"},40]
["Fisiatría",11,{"v":43.301477272727276,"d":"43"},{"v":98.2,"d":"98"},50]
["Medicina Interna",1,{"v":41.75340587340587,"d":"42"},{"v":213.63,"d":"214"},50]
["Nefrología",11,{"v":45.43727272727272,"d":"45"},111,50]
["Neurología",17,{"v":47.88200879765397,"d":"48"},111,50]
["Nutrición",{"v":9.09,"d":"9"},{"v":50.077999999999996,"d":"50"},{"v":107.3,"d":"107"},50]
["Oncohematología",24,{"v":52.315,"d":"52"},{"v":126.69,"d":"127"},50]
["Psiquiatría",1,{"v":59.71186204146729,"d":"60"},109,60]
["Reumatología",11,{"v":51.472545454545454,"d":"51"},91,60]
[]
[]
["Especialidad  quirúrgicas Adulto","min ","Promedio","max","Sugerencia estándar"]
["Cardiocirugía",5,{"v":12.426666666666668,"d":"12"},20,10]
["Cirugía Oncológica (Cab, cuello, mama)",6,{"v":32.731871091871085,"d":"33"},90,30]
["Cirugía Digestiva Alta",9,{"v":29.050909090909094,"d":"29"},{"v":104.48,"d":"104"},30]
["Cirugía Digestiva Baja (Coloproctología)",{"v":9.09,"d":"9"},{"v":20.736484848484846,"d":"21"},45,30]
["Cirugia General ",1,{"v":26.186454878454875,"d":"26"},{"v":54.5,"d":"55"},40]
["Cirugía Plástica",9,{"v":20.888727272727277,"d":"21"},{"v":36.36,"d":"36"},30]
["Cirugía Tórax",6,{"v":22.092857142857145,"d":"22"},68,20]
["Cirugía Vascular",8,{"v":22.149914529914533,"d":"22"},73,40]
["Ginecología",1,{"v":45.29202062432474,"d":"45"},132,50]
["Neurocirugía",9,{"v":25.294666666666668,"d":"25"},{"v":49.5,"d":"50"},30]
["Obstetricia",1,{"v":51.97580841976815,"d":"52"},172,50]
["Oftalmología",1,{"v":58.45183908045977,"d":"58"},189,60]
["Otorrinolaringología",1,{"v":43.54570966582824,"d":"44"},78,50]
["Traumatología",9,{"v":34.990254973982246,"d":"35"},85,30]
["Urología",12,{"v":35.236082251082244,"d":"35"},{"v":91.7,"d":"92"},40]
[]
[]
["Especialidad médica  Pediatría","min ","Promedio","max","Sugerencia de estandar"]
["Broncopulmonar Infantil",1,{"v":40.23191387559809,"d":"40"},{"v":89.1,"d":"89"},50]
["Cardiologia Infantil",7,{"v":47.8524726254138,"d":"48"},{"v":86.4,"d":"86"},50]
["Cuidados Paliativos Pediátricos",87,87,87,80]
["Diabetes Infantil",1,{"v":51.11666666666667,"d":"51"},100,60]
["Endocrinología Infantil",6,{"v":50.47244755244756,"d":"50"},89,60]
["Gastroenterología Infantil",8,{"v":47.83915151515151,"d":"48"},{"v":75.8,"d":"76"},60]
["Ginecologia Infantil",1,{"v":33.76198347107437,"d":"34"},{"v":88.6,"d":"89"},60]
["Infectología Infantil",9,{"v":29.913977272727276,"d":"30"},{"v":65.9,"d":"66"},50]
["Fisiatría",36,36,36,50]
["Pediatria",1,{"v":35.67468903915184,"d":"36"},80,40]
["Nefrología Infantil           ",7,{"v":41.31715909090909,"d":"41"},94,50]
["Neurologia Infantil         ",{"v":10.5,"d":"11"},{"v":55.83431168831168,"d":"56"},90,60]
["Nutrición Infantil            ",{"v":18.1818181818182,"d":"18"},{"v":56.906181818181814,"d":"57"},{"v":90.9,"d":"91"},60]
["Oncohematología Infantil",10,{"v":34.81699999999999,"d":"35"},80,30]
["Psiquiatría infantil",{"v":12.4,"d":"12"},{"v":48.265007292173074,"d":"48"},{"v":87.603305785124,"d":"88"},70]
["Reumatologia Infantil",50,{"v":72.554,"d":"73"},90,70]
["Genética",45,{"v":65.66833333333334,"d":"66"},88,80]
["Adolescencia",{"v":18.18,"d":"18"},{"v":69.39333333333333,"d":"69"},100,70]
[]
["Especialidad quirúrgica Pediatría","min ","Promedio","max","Sugerencia de estandar"]
["Cardiocirugía Infantil",0,0,0,10]
["Cirugia Infantil",{"v":6.8,"d":"7"},{"v":30.057781818181816,"d":"30"},{"v":62.5,"d":"63"},40]
["Cirugia Plastica Infantil",{"v":20.4545454545455,"d":"20"},{"v":26.390909090909098,"d":"26"},{"v":28.7,"d":"29"},40]
["Neurocirugía Infantil       ",20,23,27,30]
["Traumatologia Infantil",11,{"v":37.58605371900826,"d":"38"},{"v":78.8,"d":"79"},40]
["Urologia Infantil",1,{"v":25.006000000000004,"d":"25"},40,40]